[Event "NJSK 2021 Jeugd C"]
[Site "Almelo, Netherlands"]
[Date "2021.08.01"]
[Round "1.6"]
[White "Sazonov, Fedor"]
[Black "Kumar, Prajit Sai"]
[Result "0-1"]
[TimeControl "90min + 30sec/move"]
[WhiteElo "1650"]
[BlackElo "1811"]

1. d4 {[%clk 01:30:59]} d5 {[%clk 01:30:56]} {[%emt 00:00:05]} 2. c4 {[%clk
01:31:25]} {[%emt 00:00:05]} c6 {[%clk 01:31:08]} {[%emt 00:00:17]} 3. Nc3
{[%clk 01:31:29]} {[%emt 00:00:26]} Nf6 {[%clk 01:31:31]} {[%emt 00:00:07]} 4.
Bf4 {[%clk 01:31:28]} {[%emt 00:00:29]} e6 {[%clk 01:31:23]} {[%emt 00:00:38]}
5. e3 {[%clk 01:31:10]} {[%emt 00:00:49]} Nbd7 {[%clk 01:30:30]} {[%emt
00:01:24]} 6. Nf3 {[%clk 01:30:31]} {[%emt 00:01:09]} Be7 {[%clk 01:29:36]}
{[%emt 00:01:00]} 7. Be2 {[%clk 01:30:16]} {[%emt 00:01:08]} dxc4 {[%clk
01:29:32]} {[%emt 00:00:35]} 8. Bxc4 {[%clk 01:29:42]} {[%emt 00:01:02]} b5
{[%clk 01:29:47]} {[%emt 00:00:16]} 9. Bd3 {[%emt 00:03:07]} Bb7 {[%clk
01:29:10]} {[%emt 00:01:06]} 10. O-O {[%clk 01:23:50]} {[%emt 00:03:47]} O-O
{[%clk 01:29:29]} {[%emt 00:00:11]} 11. Rc1 {[%clk 01:22:58]} {[%emt 00:01:22]}
Rc8 {[%clk 01:29:27]} {[%emt 00:00:32]} 12. Ne4 {[%clk 01:21:22]} {[%emt
00:02:06]} Nxe4 {[%clk 01:28:49]} {[%emt 00:00:55]} 13. Bxe4 {[%clk 01:21:22]}
{[%emt 00:00:43]} Nf6 {[%clk 01:29:09]} {[%emt 00:00:10]} 14. Bd3 {[%clk
01:20:38]} {[%emt 00:01:14]} Qb6 {[%clk 01:27:53]} {[%emt 00:01:46]} 15. Qb3
{[%clk 01:14:59]} {[%emt 00:06:09]} Rfd8 {[%clk 01:26:08]} {[%emt 00:02:15]} 16.
Rfd1 {[%clk 01:15:16]} {[%emt 00:00:13]} a6 {[%emt 00:07:27]} 17. Be2 {[%clk
01:11:51]} c5 {[%clk 01:18:45]} {[%emt 00:04:52]} 18. dxc5 {[%clk 01:10:15]}
{[%emt 00:02:06]} Bxc5 {[%clk 01:18:43]} {[%emt 00:00:32]} 19. Ne5 {[%clk
01:01:17]} {[%emt 00:09:27]} Nd5 {[%clk 01:16:29]} {[%emt 00:02:45]} 20. Bg3
{[%clk 00:59:25]} {[%emt 00:02:23]} Nxe3 {[%clk 00:55:43]} {[%emt 00:21:16]} 21.
Rd7 {[%clk 00:42:26]} {[%emt 00:17:28]} Rxd7 {[%clk 00:51:07]} {[%emt
00:05:06]} 22. Nxd7 {[%clk 00:42:31]} {[%emt 00:00:26]} Qc6 {[%clk 00:51:20]}
{[%emt 00:00:16]} 23. Bf3 {[%clk 00:41:35]} {[%emt 00:01:26]} Qxd7 {[%clk
00:51:39]} {[%emt 00:00:10]} 24. Bxb7 {[%clk 00:40:52]} {[%emt 00:01:14]} Qxb7
{[%clk 00:52:01]} {[%emt 00:00:09]} 25. fxe3 {[%clk 00:40:45]} {[%emt
00:00:37]} Qd5 {[%clk 00:50:31]} {[%emt 00:01:58]} 26. Kf1 {[%clk 00:35:20]}
{[%emt 00:05:56]} Qf5+ {[%clk 00:45:57]} {[%emt 00:05:04]} 27. Bf2 {[%clk
00:34:02]} {[%emt 00:01:49]} Rd8 {[%clk 00:43:00]} {[%emt 00:03:27]} 28. Qc2
{[%clk 00:32:04]} {[%emt 00:02:28]} Qxc2 {[%clk 00:40:54]} {[%emt 00:02:35]} 29.
Rxc2 {[%clk 00:32:25]} {[%emt 00:00:09]} Bb4 {[%clk 00:37:12]} {[%emt
00:04:12]} 30. a3 {[%clk 00:30:34]} {[%emt 00:02:22]} Be7 {[%clk 00:35:34]}
{[%emt 00:02:07]} 31. Ke2 {[%clk 00:30:23]} {[%emt 00:00:41]} Kf8 {[%clk
00:35:01]} {[%emt 00:01:03]} 32. e4 {[%clk 00:29:28]} {[%emt 00:01:26]} Ke8
{[%clk 00:35:01]} {[%emt 00:00:29]} 33. Rc7 {[%clk 00:28:05]} {[%emt 00:01:53]}
Rd7 {[%clk 00:31:22]} {[%emt 00:04:09]} 34. Rc8+ {[%clk 00:27:37]} {[%emt
00:00:58]} Rd8 {[%clk 00:29:05]} {[%emt 00:02:47]} 35. Rc7 {[%clk 00:27:23]}
{[%emt 00:00:44]} Bg5 {[%clk 00:22:21]} {[%emt 00:07:14]} 36. Be3 {[%clk
00:26:38]} {[%emt 00:01:15]} Bxe3 {[%clk 00:19:54]} {[%emt 00:02:57]} 37. Kxe3
{[%clk 00:27:07]} {[%emt 00:00:02]} e5 {[%clk 00:20:05]} {[%emt 00:00:17]} 38.
Rc6 {[%clk 00:25:51]} {[%emt 00:01:45]} Ra8 {[%clk 00:20:28]} {[%emt 00:00:09]}
39. Rb6 {[%clk 00:26:10]} {[%emt 00:00:11]} Ra7 {[%clk 00:20:10]} {[%emt
00:00:49]} 40. Rb8+ {[%clk 00:25:32]} {[%emt 00:01:08]} Kd7 {[%clk 00:20:23]}
{[%emt 00:00:17]} 41. Rg8 {[%clk 00:25:35]} {[%emt 00:00:28]} g6 {[%clk
00:19:55]} {[%emt 00:00:58]} 42. Rg7 {[%clk 00:25:22]} {[%emt 00:00:43]} Ke6
{[%clk 00:20:08]} {[%emt 00:00:16]} 43. Rxh7 {[%clk 00:25:10]} {[%emt
00:00:42]} Rc7 {[%clk 00:19:46]} {[%emt 00:00:51]} 44. Kd2 {[%clk 00:25:04]}
{[%emt 00:00:37]} Rd7+ {[%clk 00:19:53]} {[%emt 00:00:24]} 45. Ke2 {[%clk
00:24:43]} {[%emt 00:00:51]} Rd4 {[%clk 00:20:06]} {[%emt 00:00:16]} 46. Rh4
{[%clk 00:24:36]} {[%emt 00:00:36]} b4 {[%clk 00:20:01]} {[%emt 00:00:36]} 47.
a4 {[%clk 00:21:42]} {[%emt 00:03:26]} b3 {[%clk 00:20:25]} {[%emt 00:00:04]}
48. Rh3 {[%clk 00:21:27]} {[%emt 00:00:46]} Rxe4+ {[%clk 00:20:49]} {[%emt
00:00:05]} 49. Kf2 {[%clk 00:21:27]} {[%emt 00:00:30]} Rb4 {[%clk 00:20:15]}
{[%emt 00:01:03]} 50. a5 {[%clk 00:21:19]} {[%emt 00:00:40]} Rb5 {[%clk
00:20:07]} {[%emt 00:00:38]} 51. Rc3 {[%clk 00:21:31]} {[%emt 00:00:19]} Kd5
{[%clk 00:19:50]} {[%emt 00:00:45]} 52. Ke3 {[%clk 00:21:31]} {[%emt 00:00:31]}
f5 {[%clk 00:19:05]} {[%emt 00:01:15]} 53. h4 {[%clk 00:21:13]} {[%emt
00:00:48]} Rxa5 {[%clk 00:18:33]} {[%emt 00:01:02]} 54. Rxb3 {[%clk 00:21:24]}
{[%emt 00:00:20]} Rb5 {[%clk 00:18:39]} {[%emt 00:00:24]} 55. Rd3+ {[%clk
00:21:05]} {[%emt 00:00:50]} Kc4 {[%clk 00:17:42]} {[%emt 00:01:25]} 56. Rc3+
{[%clk 00:20:15]} {[%emt 00:01:21]} Kd5 {[%clk 00:17:56]} {[%emt 00:00:15]} 57.
Rd3+ {[%clk 00:20:35]} {[%emt 00:00:11]} Ke6 {[%clk 00:18:18]} {[%emt
00:00:08]} 58. b3 {[%clk 00:20:58]} {[%emt 00:00:08]} Rb4 {[%clk 00:18:31]}
{[%emt 00:00:17]} 59. g3 {[%clk 00:20:51]} {[%emt 00:00:37]} a5 {[%clk
00:18:12]} {[%emt 00:00:48]} 60. Rc3 {[%clk 00:15:48]} {[%emt 00:05:33]} Kd5
{[%clk 00:18:17]} {[%emt 00:00:25]} 61. Rd3+ {[%clk 00:16:10]} {[%emt
00:00:09]} Rd4 {[%clk 00:17:43]} {[%emt 00:01:03]} 62. Rc3 {[%clk 00:16:22]}
{[%emt 00:00:18]} Rg4 {[%clk 00:18:04]} {[%emt 00:00:08]} 63. Kf2 {[%clk
00:14:56]} {[%emt 00:01:55]} f4 {[%clk 00:17:35]} {[%emt 00:01:01]} 64. gxf4
{[%clk 00:13:29]} {[%emt 00:01:57]} exf4 {[%clk 00:17:57]} {[%emt 00:00:08]} 65.
Rh3 {[%emt 00:01:42]} Rg3 {[%emt 00:01:10]} 66. Rxg3 {[%emt 00:00:41]} fxg3+
{[%emt 00:00:09]} 67. Kxg3 {[%clk 00:10:11]} {[%emt 00:00:07]} Kc5 {[%clk
00:17:58]} {[%emt 00:00:29]} 68. Kg4 {[%clk 00:10:26]} {[%emt 00:00:15]} Kb4
{[%clk 00:18:27]} {[%emt 00:00:01]} 69. Kg5 {[%clk 00:10:55]} {[%emt 00:00:01]}
Kxb3 {[%clk 00:18:50]} {[%emt 00:00:06]} 70. Kxg6 {[%clk 00:11:14]} {[%emt
00:00:12]} a4 {[%clk 00:19:16]} {[%emt 00:00:04]} 71. h5 {[%clk 00:11:42]}
{[%emt 00:00:01]} a3 {[%clk 00:19:39]} {[%emt 00:00:08]} 72. h6 {[%clk
00:12:10]} {[%emt 00:00:02]} a2 {[%clk 00:20:06]} {[%emt 00:00:03]} 73. h7
{[%clk 00:12:38]} {[%emt 00:00:02]} a1=Q {[%clk 00:20:28]} {[%emt 00:00:08]} 74.
Kf7 {[%clk 00:13:02]} {[%emt 00:00:06]} Qh8 {[%clk 00:20:43]} {[%emt 00:00:14]}
0-1

[Event "NJSK 2021 Jeugd C"]
[Site "Almelo, Netherlands"]
[Date "2021.08.01"]
[Round "1.7"]
[White "Dekker, Thiemen"]
[Black "Zecha, Oscar"]
[Result "1-0"]
[TimeControl "90min + 30sec/move"]
[WhiteElo "1806"]
[BlackElo "1650"]

1. e4 {[%clk 01:30:55]} {[%emt 00:00:03]} c5 {[%clk 01:30:56]} {[%emt
00:00:06]} 2. Nf3 {[%clk 01:31:17]} {[%emt 00:00:07]} d6 {[%clk 01:31:20]}
{[%emt 00:00:06]} 3. d4 {[%clk 01:31:32]} {[%emt 00:00:16]} cxd4 {[%clk
01:31:42]} {[%emt 00:00:08]} 4. Nxd4 {[%clk 01:31:52]} {[%emt 00:00:10]} Nf6
{[%clk 01:32:07]} {[%emt 00:00:04]} 5. Nc3 {[%clk 01:32:08]} {[%emt 00:00:15]}
a6 {[%clk 01:32:15]} {[%emt 00:00:21]} 6. Be2 {[%clk 01:31:42]} {[%emt
00:00:55]} e5 {[%clk 01:31:13]} {[%emt 00:01:33]} 7. Nb3 {[%clk 01:32:02]}
{[%emt 00:00:10]} Be7 {[%clk 01:29:07]} {[%emt 00:02:36]} 8. Be3 {[%clk
01:31:29]} {[%emt 00:01:02]} Be6 {[%clk 01:28:22]} {[%emt 00:01:15]} 9. f3
{[%clk 01:29:56]} {[%emt 00:02:03]} Nbd7 {[%clk 01:27:47]} {[%emt 00:01:05]} 10.
Qd2 {[%clk 01:29:40]} {[%emt 00:00:46]} O-O {[%clk 01:27:59]} {[%emt 00:00:19]}
11. O-O-O {[%clk 01:29:34]} {[%emt 00:00:35]} b5 {[%clk 01:28:02]} {[%emt
00:00:27]} 12. g4 {[%clk 01:28:56]} {[%emt 00:01:08]} Nb6 {[%clk 01:26:32]}
{[%emt 00:02:00]} 13. g5 {[%clk 01:27:26]} {[%emt 00:02:00]} Nh5 {[%clk
01:26:28]} {[%emt 00:00:34]} 14. Rhg1 {[%clk 01:24:59]} {[%emt 00:02:56]} Nc4
{[%clk 01:25:55]} {[%emt 00:01:04]} 15. Bxc4 {[%clk 01:18:40]} {[%emt
00:06:50]} bxc4 {[%clk 01:26:07]} {[%emt 00:00:16]} 16. Nd4 {[%clk 01:18:51]}
{[%emt 00:00:20]} exd4 {[%clk 01:21:15]} {[%emt 00:05:22]} 17. Qxd4 {[%clk
01:17:46]} {[%emt 00:05:40]} g6 {[%clk 01:11:37]} {[%emt 00:06:03]} 18. f4
{[%clk 01:15:04]} {[%emt 00:03:12]} Qa5 {[%clk 00:55:33]} {[%emt 00:16:34]} 19.
Rdf1 {[%clk 01:08:00]} {[%emt 00:07:34]} f5 {[%clk 00:39:14]} {[%emt 00:16:49]}
20. gxf6 {[%clk 01:03:32]} {[%emt 00:04:58]} Rxf6 {[%clk 00:36:08]} {[%emt
00:03:36]} 21. f5 {[%clk 00:59:33]} {[%emt 00:04:30]} Bf7 {[%clk 00:27:16]}
{[%emt 00:09:22]} 22. Bg5 {[%clk 00:55:43]} {[%emt 00:04:20]} Rb8 {[%clk
00:24:44]} {[%emt 00:03:02]} 23. Bxf6 {[%clk 00:54:53]} {[%emt 00:01:20]} Bxf6
{[%clk 00:24:59]} {[%emt 00:00:14]} 24. fxg6 {[%clk 00:54:28]} {[%emt
00:00:57]} Bxd4 {[%clk 00:16:13]} {[%emt 00:09:16]} 25. gxf7+ {[%clk 00:54:44]}
{[%emt 00:00:14]} Kf8 {[%clk 00:16:33]} {[%emt 00:00:10]} 26. Rg8+ {[%clk
00:54:54]} {[%emt 00:00:20]} Ke7 {[%clk 00:16:54]} {[%emt 00:00:09]} 27. Rxb8
{[%clk 00:54:03]} {[%emt 00:01:20]} Bg7 {[%clk 00:15:59]} {[%emt 00:01:24]} 28.
Rf5 {[%clk 00:52:48]} {[%emt 00:01:45]} Qxf5 {[%clk 00:09:40]} {[%emt
00:06:50]} 29. exf5 {[%clk 00:53:01]} {[%emt 00:00:18]} Kxf7 {[%clk 00:09:37]}
{[%emt 00:00:32]} 30. Ne4 {[%clk 00:52:09]} {[%emt 00:01:21]} Bh6+ {[%clk
00:08:12]} {[%emt 00:01:56]} 31. Kd1 {[%clk 00:51:37]} {[%emt 00:01:02]} Bf4
{[%clk 00:07:49]} {[%emt 00:00:53]} 32. Rb7+ {[%clk 00:51:28]} {[%emt
00:00:39]} Kg8 {[%clk 00:07:55]} {[%emt 00:00:24]} 33. h4 {[%clk 00:50:10]}
{[%emt 00:01:48]} d5 {[%clk 00:03:02]} {[%emt 00:05:24]} 34. Ng5 {[%clk
00:49:26]} {[%emt 00:01:12]} Nf6 {[%clk 00:00:54]} {[%emt 00:02:39]} 35. Ne6
{[%clk 00:47:43]} {[%emt 00:02:10]} Be5 {[%clk 00:00:40]} {[%emt 00:00:47]} 36.
c3 {[%clk 00:46:56]} {[%emt 00:01:17]} Ne4 {[%clk 00:00:53]} {[%emt 00:00:18]}
37. Ra7 {[%clk 00:45:51]} {[%emt 00:01:32]} Nf2+ {[%clk 00:00:57]} {[%emt
00:00:28]} 38. Kc2 {[%clk 00:45:43]} {[%emt 00:00:37]} Nd3 {[%clk 00:01:00]}
{[%emt 00:00:28]} 39. Rxa6 {[%clk 00:45:23]} {[%emt 00:00:50]} Ne1+ {[%clk
00:00:58]} {[%emt 00:00:32]} 40. Kb1 {[%clk 00:44:38]} {[%emt 00:01:15]} Nf3
{[%clk 00:01:13]} {[%emt 00:00:15]} 41. Ra8+ {[%clk 00:44:40]} {[%emt
00:00:28]} Kf7 {[%clk 00:01:35]} {[%emt 00:00:08]} 42. Ng5+ {[%clk 00:44:51]}
{[%emt 00:00:19]} Nxg5 {[%clk 00:01:57]} {[%emt 00:00:08]} 43. hxg5 {[%clk
00:45:15]} {[%emt 00:00:07]} Bf4 {[%clk 00:02:02]} {[%emt 00:00:25]} 44. g6+
{[%clk 00:44:37]} {[%emt 00:01:08]} hxg6 {[%clk 00:02:24]} {[%emt 00:00:07]} 45.
fxg6+ {[%clk 00:45:05]} {[%emt 00:00:03]} Kxg6 {[%clk 00:02:51]} {[%emt
00:00:03]} 46. Rd8 {[%clk 00:45:17]} {[%emt 00:00:17]} Be3 {[%clk 00:02:25]}
{[%emt 00:00:57]} 47. Rxd5 {[%clk 00:45:31]} {[%emt 00:00:16]} Kf6 {[%clk
00:02:45]} {[%emt 00:00:10]} 48. a4 {[%clk 00:45:37]} {[%emt 00:00:25]} Ke6
{[%clk 00:02:38]} {[%emt 00:00:36]} 49. Rd8 {[%clk 00:45:11]} {[%emt 00:00:55]}
Bb6 {[%clk 00:02:42]} {[%emt 00:00:27]} 50. Rb8 {[%clk 00:44:44]} {[%emt
00:00:57]} Ba5 {[%clk 00:02:31]} {[%emt 00:00:41]} 51. Rb5 {[%clk 00:44:47]}
{[%emt 00:00:27]} Bd8 {[%clk 00:02:43]} {[%emt 00:00:18]} 52. Rc5 {[%clk
00:45:00]} {[%emt 00:00:18]} Kd6 {[%clk 00:02:58]} {[%emt 00:00:14]} 53. Rxc4
{[%clk 00:45:20]} {[%emt 00:00:10]} Bb6 {[%clk 00:02:16]} {[%emt 00:01:13]} 54.
b4 {[%clk 00:45:18]} {[%emt 00:00:32]} Kd5 {[%clk 00:02:33]} {[%emt 00:00:12]}
55. Rc8 {[%clk 00:45:35]} {[%emt 00:00:13]} Kd6 {[%clk 00:02:53]} {[%emt
00:00:09]} 56. a5 {[%clk 00:45:39]} {[%emt 00:00:27]} Bf2 {[%clk 00:02:53]}
{[%emt 00:00:31]} 57. b5 {[%clk 00:45:48]} {[%emt 00:00:20]} Kd7 {[%clk
00:03:19]} {[%emt 00:00:04]} 58. Rc4 {[%clk 00:46:05]} {[%emt 00:00:14]} Bg3
{[%clk 00:02:50]} {[%emt 00:00:59]} 59. b6 {[%clk 00:46:12]} {[%emt 00:00:23]}
Bh2 {[%clk 00:03:11]} {[%emt 00:00:08]} 60. a6 {[%clk 00:46:24]} {[%emt
00:00:19]} Bb8 {[%clk 00:03:19]} {[%emt 00:00:22]} 61. a7 {[%clk 00:46:44]}
{[%emt 00:00:10]} Be5 {[%clk 00:03:42]} {[%emt 00:00:06]} 62. a8=Q {[%clk
00:46:47]} {[%emt 00:00:28]} Ke6 {[%clk 00:04:03]} {[%emt 00:00:08]} 63. Re4
{[%clk 00:46:27]} {[%emt 00:00:50]} Kf5 {[%clk 00:04:28]} {[%emt 00:00:05]} 64.
Qd5 {[%clk 00:46:35]} {[%emt 00:00:23]} Kf6 {[%clk 00:04:47]} {[%emt 00:00:10]}
65. Qxe5+ {[%clk 00:46:54]} {[%emt 00:00:11]} Kg6 {[%clk 00:05:12]} {[%emt
00:00:06]} 66. Rg4+ {[%clk 00:47:07]} {[%emt 00:00:16]} Kf7 {[%clk 00:05:30]}
{[%emt 00:00:13]} 67. Rg7+ {[%clk 00:47:33]} {[%emt 00:00:04]} Kf8 {[%clk
00:05:56]} {[%emt 00:00:03]} 68. Qe7# {[%clk 00:47:52]} {[%emt 00:00:11]} 1-0

[Event "NJSK 2021 Jeugd C"]
[Site "Almelo, Netherlands"]
[Date "2021.08.01"]
[Round "1.8"]
[White "Ramdien, Steven"]
[Black "Arnold, Rhys"]
[Result "0-1"]
[TimeControl "90min + 30sec/move"]
[WhiteElo "1589"]
[BlackElo "1748"]

1. e4 {[%clk 01:30:58]} {[%emt 00:00:02]} c5 {[%clk 01:30:43]} {[%emt
00:00:17]} 2. Nf3 {[%clk 01:31:20]} {[%emt 00:00:07]} e6 {[%clk 01:30:57]}
{[%emt 00:00:18]} 3. d4 {[%clk 01:31:23]} {[%emt 00:00:27]} cxd4 {[%clk
01:31:22]} {[%emt 00:00:06]} 4. Nxd4 {[%emt 00:00:06]} Nf6 {[%emt 00:00:14]} 5.
Nc3 {[%clk 01:30:30]} {[%emt 00:01:02]} Nc6 {[%clk 01:31:26]} {[%emt 00:00:27]}
6. Be3 {[%clk 01:30:17]} {[%emt 00:00:43]} Bb4 {[%clk 01:31:31]} {[%emt
00:00:25]} 7. f3 {[%clk 01:29:11]} {[%emt 00:01:35]} d5 {[%clk 01:30:53]}
{[%emt 00:01:09]} 8. Bd3 {[%clk 01:27:31]} {[%emt 00:02:10]} dxe4 {[%clk
01:27:57]} {[%emt 00:03:25]} 9. Bxe4 {[%clk 01:26:31]} {[%emt 00:01:30]} Nxe4
{[%clk 01:25:33]} {[%emt 00:02:55]} 10. fxe4 {[%clk 01:26:58]} {[%emt
00:00:03]} Bxc3+ {[%clk 01:25:36]} {[%emt 00:00:28]} 11. bxc3 {[%clk 01:27:25]}
{[%emt 00:00:03]} Qh4+ {[%clk 01:25:46]} {[%emt 00:00:18]} 12. g3 {[%clk
01:25:03]} {[%emt 00:02:51]} Qxe4 {[%clk 01:25:45]} {[%emt 00:00:31]} 13. Qf3
{[%clk 01:25:13]} {[%emt 00:00:20]} Qxf3 {[%clk 01:25:29]} {[%emt 00:00:47]} 14.
Nxf3 {[%clk 01:25:41]} {[%emt 00:00:02]} O-O {[%clk 01:25:03]} {[%emt
00:00:57]} 15. Nd4 {[%clk 01:23:22]} {[%emt 00:02:49]} e5 {[%clk 01:25:00]}
{[%emt 00:00:34]} 16. Nxc6 {[%clk 01:23:31]} {[%emt 00:00:21]} bxc6 {[%clk
01:25:24]} {[%emt 00:00:06]} 17. O-O {[%clk 01:23:41]} {[%emt 00:00:20]} Be6
{[%clk 01:24:11]} {[%emt 00:01:42]} 18. a3 {[%clk 01:21:44]} {[%emt 00:02:28]}
a6 {[%clk 01:23:00]} {[%emt 00:01:40]} 19. Bc5 {[%clk 01:20:08]} {[%emt
00:02:06]} Rfd8 {[%clk 01:21:41]} {[%emt 00:07:12]} 20. Rab1 {[%clk 01:11:54]}
{[%emt 00:03:20]} Bc4 {[%clk 01:20:03]} {[%emt 00:02:09]} 21. Rfe1 {[%clk
01:08:27]} {[%emt 00:03:57]} f6 {[%clk 01:18:54]} {[%emt 00:01:39]} 22. Rb7
{[%clk 00:55:44]} {[%emt 00:13:13]} Rd2 {[%clk 01:13:23]} {[%emt 00:06:00]} 23.
Re7 {[%clk 00:48:50]} {[%emt 00:07:24]} Rad8 {[%clk 01:08:45]} {[%emt
00:05:09]} 24. Rb1 {[%clk 00:36:46]} {[%emt 00:12:33]} Rd1+ {[%clk 01:08:14]}
{[%emt 00:01:01]} 25. Rxd1 {[%clk 00:37:08]} {[%emt 00:00:08]} Rxd1+ {[%clk
01:08:38]} {[%emt 00:00:06]} 26. Kg2 {[%clk 00:36:43]} {[%emt 00:00:55]} Rd2+
{[%clk 01:08:48]} {[%emt 00:00:21]} 27. Kh3 {[%clk 00:35:22]} {[%emt 00:01:51]}
Bf1+ {[%clk 01:05:56]} {[%emt 00:03:21]} 28. Kg4 {[%clk 00:35:33]} {[%emt
00:00:19]} h5+ {[%clk 01:06:12]} {[%emt 00:00:15]} 29. Kf5 {[%clk 00:34:34]}
{[%emt 00:01:28]} Rxc2 {[%clk 01:05:35]} {[%emt 00:01:08]} 30. Re8+ {[%clk
00:33:38]} {[%emt 00:01:25]} Kh7 {[%clk 01:05:33]} {[%emt 00:00:31]} 31. Ke6
{[%clk 00:33:00]} {[%emt 00:01:09]} Kg6 {[%clk 01:05:03]} {[%emt 00:01:00]} 32.
Bf8 {[%clk 00:32:53]} {[%emt 00:00:37]} Rd2 {[%clk 01:04:47]} {[%emt 00:00:45]}
33. Ra8 {[%clk 00:32:46]} {[%emt 00:00:37]} Bh3+ {[%clk 01:03:33]} {[%emt
00:01:45]} 34. Ke7 {[%clk 00:32:47]} {[%emt 00:00:29]} Bf1 {[%clk 00:59:52]}
{[%emt 00:04:11]} 35. Ra7 {[%clk 00:32:46]} {[%emt 00:00:32]} Rxh2 {[%clk
00:59:36]} {[%emt 00:00:45]} 36. Kd6 {[%clk 00:32:45]} {[%emt 00:00:31]} Rc2
{[%clk 00:59:31]} {[%emt 00:00:35]} 37. Rxg7 {[%clk 00:33:04]} {[%emt
00:00:11]} Kf5 {[%clk 00:59:52]} {[%emt 00:00:09]} 38. Ke7 {[%clk 00:33:05]}
{[%emt 00:00:29]} Bc4 {[%clk 00:58:38]} {[%emt 00:01:45]} 39. Rh7 {[%clk
00:33:17]} {[%emt 00:00:17]} Rxc3 {[%clk 00:56:24]} {[%emt 00:02:44]} 40. Rxh5+
{[%clk 00:33:46]} {[%emt 00:00:02]} Kg4 {[%clk 00:56:24]} {[%emt 00:00:29]} 41.
Rh6 {[%clk 00:33:48]} {[%emt 00:00:28]} f5 {[%clk 00:55:49]} {[%emt 00:01:05]}
42. Kf6 {[%clk 00:33:58]} {[%emt 00:00:20]} f4 {[%clk 00:52:33]} {[%emt
00:03:47]} 43. gxf4 {[%clk 00:34:03]} {[%emt 00:00:24]} exf4 {[%clk 00:52:49]}
{[%emt 00:00:14]} 44. Ke5 {[%clk 00:34:11]} {[%emt 00:00:20]} Bd5 {[%clk
00:50:19]} {[%emt 00:03:02]} 45. Rg6+ {[%clk 00:33:11]} {[%emt 00:01:29]} Kf3
{[%clk 00:50:22]} {[%emt 00:00:27]} 46. Rf6 {[%clk 00:32:56]} {[%emt 00:00:45]}
Re3+ {[%clk 00:50:16]} {[%emt 00:00:37]} 47. Kd4 {[%clk 00:33:04]} {[%emt
00:00:20]} Re4+ {[%clk 00:50:26]} {[%emt 00:00:20]} 48. Kd3 {[%clk 00:33:09]}
{[%emt 00:00:27]} Bc4+ {[%clk 00:48:29]} {[%emt 00:02:27]} 49. Kd2 {[%clk
00:32:49]} {[%emt 00:00:49]} Bb5 {[%clk 00:47:59]} {[%emt 00:01:00]} 50. Bd6
{[%clk 00:31:59]} {[%emt 00:01:20]} Rd4+ {[%clk 00:46:39]} {[%emt 00:01:51]} 51.
Ke1 {[%clk 00:31:49]} {[%emt 00:00:39]} Ba4 {[%clk 00:46:05]} {[%emt 00:01:04]}
0-1